[Event "Winter Malopolska Cup Master 2022"]
[Site "Krakow"]
[Date "2022.01.16"]
[Round "3.5"]
[White "Szopa, Emilia"]
[Black "Nowak, Maciej"]
[Result "1-0"]
[ECO "B17"]
[WhiteElo "1588"]
[BlackElo "2005"]
[Annotator "ChessBase"]
[PlyCount "63"]
[EventDate "2022.01.15"]
[EventType "swiss"]
[EventCountry "POL"]
[SourceTitle "playchess.com"]
[Source "ChessBase"]
[SourceQuality "1"]
[TimeControl "5400+30"]

1. e4 {[%emt 0:01:30]} c6 {[%emt 0:00:03]} 2. d4 {[%emt 0:00:14]} d5 {[%emt 0:00:04]} 3. Nc3 {[%emt 0:00:14]} dxe4 {[%emt 0:00:16]} 4. Nxe4 {[%emt 0:00:19]} Nd7 {[%emt 0:00:06]} 5. Bc4 {[%emt 0:01:31]} Ngf6 {[%emt 0:02:14]} 6. Ng5 {[%emt 0:02:04]} e6 {[%emt 0:00:37]} 7. Qe2 {[%emt 0:01:26]} Nb6 {[%emt 0:01:40]} 8. Bd3 {[%emt 0:01:17]} Qxd4 {[%emt 0:07:21]} 9. N1f3 {[%emt 0:02:59]} Bb4+ {[%emt 0:02:07]} 10. c3 {[%emt 0:08:30]} Bxc3+ {[%emt 0:00:06]} 11. Kf1 {[%emt 0:00:08]} Qb4 {[%emt 0:17:33]} 12. bxc3 {[%emt 0:04:58]} Qxc3 {[%emt 0:00:08]} 13. Bb2 {[%emt 0:00:30]} Qa5 {[%emt 0:03:31]} 14. Ne4 {[%emt 0:05:13]} Ke7 {[%emt 0:14:31]} 15. a4 {[%emt 0:13:52]} Nxe4 {[%emt 0:09:50]} 16. Qxe4 {[%emt 0:01:48]} f6 {[%emt 0:02:17]} 17. Nd4 {[%emt 0:08:55]} Bd7 {[%emt 0:08:45]} 18. Nb3 {[%emt 0:10:11]} Qg5 {[%emt 0:06:27]} 19. Nc5 {[%emt 0:06:08]} Rab8 {[%emt 0:08:28]} 20. Ba3 {[%emt 0:02:19]} Kd8 {[%emt 0:12:30]} 21. Nxe6+ {[%emt 0:01:26]} Bxe6 {[%emt 0:00:02]} 22. Qxe6 {[%emt 0:00:35]} Re8 {[%emt 0:00:52]} 23. Qd6+ {[%emt 0:00:57]} Kc8 {[%emt 0:00:05]} 24. a5 {[%emt 0:05:50]} Qxa5 {[%emt 0:01:31]} 25. Qxb8+ {[%emt 0:00:40]} Kd7 {[%emt 0:01:07]} 26. Qxb7+ {[%emt 0:00:18]} Ke6 {[%emt 0:00:39]} 27. Bb2 {[%emt 0:03:53]} Qd2 {[%emt 0:00:22]} 28. Qxc6+ {[%emt 0:01:44]} Kf7 {[%emt 0:00:17]} 29. Rxa7+ {[%emt 0:00:27]} Kf8 {[%emt 0:00:41]} 30. Ba3+ {[%emt 0:01:10]} Re7 {[%emt 0:00:13]} 31. Bxe7+ {[%emt 0:00:08]} Kf7 {[%emt 0:00:07]} 32. Bb4+ {[%emt 0:00:15]} 1-0

[Event "Winter Malopolska Cup Master 2022"]
[Site "Krakow"]
[Date "2022.01.16"]
[Round "3.6"]
[White "Wilk, Igor"]
[Black "Kania, Franciszek"]
[Result "1/2-1/2"]
[ECO "E70"]
[WhiteElo "1768"]
[BlackElo "1528"]
[Annotator "NA"]
[PlyCount "97"]
[EventDate "2022.01.15"]
[EventType "swiss"]
[EventCountry "POL"]
[SourceTitle "playchess.com"]
[Source "ChessBase"]
[SourceQuality "1"]
[TimeControl "5400+30"]

1. d4 {[%emt 0:00:03]} Nf6 {[%emt 0:00:12]} 2. c4 {[%emt 0:00:05]} g6 {[%emt 0:00:19]} 3. Nc3 {[%emt 0:00:05]} Bg7 {[%emt 0:00:19]} 4. e4 {[%emt 0:00:06]} d6 {[%emt 0:00:14]} 5. Bd3 {[%emt 0:00:07]} O-O {[%emt 0:00:25]} 6. Nge2 {[%emt 0:00:02]} e5 {[%emt 0:00:23]} 7. d5 {[%emt 0:00:04]} a5 {[%emt 0:00:27]} 8. O-O {[%emt 0:00:23]} Nbd7 {[%emt 0:00:48]} 9. f3 {[%emt 0:00:18]} Nc5 {[%emt 0:00:12]} 10. Bc2 {[%emt 0:00:09]} Nh5 {[%emt 0:04:24]} 11. Be3 {[%emt 0:00:28]} f5 {[%emt 0:00:40]} 12. exf5 {[%emt 0:01:27]} gxf5 {[%emt 0:00:33]} 13. Kh1 {[%emt 0:00:31]} Qh4 {[%emt 0:05:46]} 14. b3 {[%emt 0:03:45]} Bd7 {[%emt 0:05:06]} 15. Qd2 {[%emt 0:02:40]} Qe7 {[%emt 0:00:52]} 16. Rad1 {[%emt 0:05:47]} b6 {[%emt 0:02:58]} 17. Rg1 {[%emt 0:07:17]} Kh8 {[%emt 0:09:14]} 18. a3 {[%emt 0:17:30]} Rae8 {[%emt 0:10:30]} 19. b4 {[%emt 0:10:32]} Nb7 {[%emt 0:01:34]} 20. g4 {[%emt 0:02:51]} fxg4 {[%emt 0:03:18]} 21. fxg4 {[%emt 0:00:11]} Nf4 {[%emt 0:05:20]} 22. Nxf4 {[%emt 0:03:10]} exf4 {[%emt 0:00:35]} 23. Bd4 {[%emt 0:00:18]} Be5 {[%emt 0:01:10]} 24. Rdf1 {[%emt 0:01:28]} Qg7 {[%emt 0:02:45]} 25. Bxe5 {[%emt 0:05:22]} dxe5 {[%emt 0:01:24]} 26. Ne4 {[%emt 0:00:09]} axb4 {[%emt 0:08:49]} 27. axb4 {[%emt 0:00:13]} Nd6 {[%emt 0:04:29]} 28. Qd3 {[%emt 0:01:39]} Re7 {[%emt 0:01:46]} 29. h3 {[%emt 0:05:08]} Qh6 {[%emt 0:07:38]} 30. Rg2 {[%emt 0:06:10]} Nxe4 {[%emt 0:03:08]} 31. Qxe4 {[%emt 0:00:02]} Bxg4 {[%emt 0:00:34]} 32. Rh2 {[%emt 0:05:31]} Bf5 {[%emt 0:01:14]} 33. Qe2 {[%emt 0:00:18]} Bxc2 {[%emt 0:01:28]} 34. Qxc2 {[%emt 0:00:05]} Qh5 {[%emt 0:02:25]} 35. c5 {[%emt 0:01:08]} bxc5 {[%emt 0:01:53]} 36. bxc5 {[%emt 0:00:07]} Qf5 {[%emt 0:00:38]} 37. d6 {[%emt 0:03:29]} cxd6 {[%emt 0:01:14]} 38. cxd6 {[%emt 0:00:21]} Rd7 {[%emt 0:01:14]} 39. Qxf5 {[%emt 0:01:28]} Rxf5 {[%emt 0:00:05]} 40. Rd2 {[%emt 0:00:06]} Rf6 {[%emt 0:00:29]} 41. Re2 {[%emt 0:00:56]} Rf5 {[%emt 0:02:38]} 42. Rfe1 {[%emt 0:00:37]} f3 {[%emt 0:00:21]} 43. Rxe5 {[%emt 0:00:05]} f2 {[%emt 0:01:34]} 44. Re8+ {[%emt 0:00:10]} Kg7 {[%emt 0:00:07]} 45. Rf1 {[%emt 0:00:08]} Rxd6 {[%emt 0:00:07]} 46. Re2 {[%emt 0:00:18]} Rdf6 {[%emt 0:00:17]} 47. Kg2 {[%emt 0:00:06]} Rg6+ {[%emt 0:00:12]} 48. Kh2 {[%emt 0:00:14]} Rgf6 {[%emt 0:00:52]} 49. Kg2 {[%emt 0:00:12]} 1/2-1/2

[Event "Winter Malopolska Cup Master 2022"]
[Site "Krakow"]
[Date "2022.01.16"]
[Round "3.7"]
[White "Klementys, Jerzy"]
[Black "Owoc, Jakub"]
[Result "1-0"]
[ECO "E91"]
[WhiteElo "1564"]
[BlackElo "1701"]
[Annotator "NA"]
[PlyCount "187"]
[EventDate "2022.01.15"]
[EventType "swiss"]
[EventCountry "POL"]
[SourceTitle "playchess.com"]
[Source "ChessBase"]
[SourceQuality "1"]
[TimeControl "5400+30"]

1. d4 {[%emt 0:00:02]} Nf6 {[%emt 0:00:07]} 2. c4 {[%emt 0:00:01]} g6 {[%emt 0:00:07]} 3. Nc3 {[%emt 0:00:03]} Bg7 {[%emt 0:00:06]} 4. e4 {[%emt 0:00:06]} d6 {[%emt 0:00:07]} 5. Nf3 {[%emt 0:00:05]} O-O {[%emt 0:00:06]} 6. Be2 {[%emt 0:00:14]} Nbd7 {[%emt 0:00:05]} 7. O-O {[%emt 0:00:09]} e5 {[%emt 0:00:05]} 8. Be3 {[%emt 0:00:17]} Qe7 {[%emt 0:00:06]} 9. h3 {[%emt 0:00:29]} exd4 {[%emt 0:02:43]} 10. Bxd4 {[%emt 0:00:03]} Nxe4 {[%emt 0:02:45]} 11. Nxe4 {[%emt 0:00:02]} Qxe4 {[%emt 0:00:11]} 12. Bxg7 {[%emt 0:00:04]} Kxg7 {[%emt 0:00:10]} 13. Re1 {[%emt 0:00:39]} Nc5 {[%emt 0:01:23]} 14. b4 {[%emt 0:00:22]} Ne6 {[%emt 0:01:13]} 15. Bd3 {[%emt 0:01:05]} Qf4 {[%emt 0:00:07]} 16. Qc2 {[%emt 0:04:43]} Bd7 {[%emt 0:00:44]} 17. Qc3+ {[%emt 0:00:38]} Qf6 {[%emt 0:00:15]} 18. Qxf6+ {[%emt 0:00:03]} Kxf6 {[%emt 0:00:08]} 19. b5 {[%emt 0:01:15]} Nc5 {[%emt 0:00:08]} 20. Bc2 {[%emt 0:00:15]} Be6 {[%emt 0:00:10]} 21. Nd2 {[%emt 0:00:11]} Rfe8 {[%emt 0:00:06]} 22. Rac1 {[%emt 0:01:37]} a6 {[%emt 0:00:11]} 23. a4 {[%emt 0:00:16]} Bf5 {[%emt 0:00:27]} 24. Rxe8 {[%emt 0:03:34]} Rxe8 {[%emt 0:00:06]} 25. Bxf5 {[%emt 0:00:53]} Kxf5 {[%emt 0:00:07]} 26. a5 {[%emt 0:00:15]} h5 {[%emt 0:04:28]} 27. Kf1 {[%emt 0:00:07]} Nd3 {[%emt 0:02:35]} 28. Rd1 {[%emt 0:01:15]} Ne5 {[%emt 0:04:47]} 29. Rb1 {[%emt 0:03:00]} Ke6 {[%emt 0:04:26]} 30. Rb3 {[%emt 0:05:08]} Kd7 {[%emt 0:02:29]} 31. f4 {[%emt 0:01:03]} Nxc4 {[%emt 0:01:09]} 32. Nxc4 {[%emt 0:01:04]} Re4 {[%emt 0:00:03]} 33. bxa6 {[%emt 0:06:17]} bxa6 {[%emt 0:00:18]} 34. Nb2 {[%emt 0:01:55]} Rxf4+ {[%emt 0:01:14]} 35. Ke2 {[%emt 0:00:21]} Rf5 {[%emt 0:00:27]} 36. Ra3 {[%emt 0:01:24]} Rc5 {[%emt 0:00:19]} 37. Nd3 {[%emt 0:00:21]} Rc2+ {[%emt 0:00:13]} 38. Kf3 {[%emt 0:00:02]} c5 {[%emt 0:00:14]} 39. Nf4 {[%emt 0:01:09]} Rb2 {[%emt 0:01:19]} 40. Nd5 {[%emt 0:04:19]} Kc6 {[%emt 0:00:06]} 41. Ne7+ {[%emt 0:00:58]} Kb5 {[%emt 0:01:57]} 42. Nd5 {[%emt 0:03:19]} c4 {[%emt 0:02:40]} 43. Ra1 {[%emt 0:06:03]} Kc5 {[%emt 0:15:06]} 44. Nc7 {[%emt 0:09:59]} Rb7 {[%emt 0:00:25]} 45. Na8 {[%emt 0:03:51]} Rb3+ {[%emt 0:04:20]} 46. Ke2 {[%emt 0:00:47]} d5 {[%emt 0:00:09]} 47. Nc7 {[%emt 0:02:47]} Rb7 {[%emt 0:00:12]} 48. Na8 {[%emt 0:00:04]} Rb2+ {[%emt 0:00:06]} 49. Kf3 {[%emt 0:00:13]} d4 {[%emt 0:00:34]} 50. Nc7 {[%emt 0:00:13]} Rb7 {[%emt 0:00:18]} 51. Na8 {[%emt 0:00:03]} Rb3+ {[%emt 0:00:09]} 52. Ke2 {[%emt 0:00:08]} Rb2+ {[%emt 0:00:09]} 53. Kf3 {[%emt 0:00:02]} c3 {[%emt 0:00:11]} 54. Nc7 {[%emt 0:00:50]} c2 {[%emt 0:00:50]} 55. Rc1 {[%emt 0:02:09]} Kc4 {[%emt 0:00:13]} 56. Nxa6 {[%emt 0:01:17]} d3 {[%emt 0:00:12]} 57. Ke3 {[%emt 0:01:04]} Kc3 {[%emt 0:00:05]} 58. Nc5 {[%emt 0:00:14]} Rb4 {[%emt 0:00:54]} 59. Nxd3 {[%emt 0:00:28]} Rb3 {[%emt 0:04:44]} 60. Ke2 {[%emt 0:00:50]} Rb5 {[%emt 0:03:47]} 61. a6 {[%emt 0:01:32]} Ra5 {[%emt 0:00:06]} 62. Ne1 {[%emt 0:02:40]} Rxa6 {[%emt 0:00:40]} 63. Rxc2+ {[%emt 0:00:01]} Kd4 {[%emt 0:00:09]} 64. Rc7 {[%emt 0:00:28]} Rf6 {[%emt 0:00:07]} 65. Re7 {[%emt 0:00:49]} Kd5 {[%emt 0:00:22]} 66. Nf3 {[%emt 0:02:17]} Kd6 {[%emt 0:00:05]} 67. Re8 {[%emt 0:00:50]} Kd7 {[%emt 0:00:01]} 68. Re3 {[%emt 0:00:02]} Kd6 {[%emt 0:00:22]} 69. Kf2 {[%emt 0:00:02]} g5 {[%emt 0:00:32]} 70. Kg3 {[%emt 0:00:09]} Rg6 {[%emt 0:00:18]} 71. Nd4 {[%emt 0:01:31]} Kd5 {[%emt 0:00:33]} 72. Nf5 {[%emt 0:01:21]} Rf6 {[%emt 0:02:00]} 73. Ne7+ {[%emt 0:01:35]} Kd4 {[%emt 0:00:13]} 74. Rf3 {[%emt 0:03:12]} Ke5 {[%emt 0:01:54]} 75. Rxf6 {[%emt 0:00:20]} Kxf6 {[%emt 0:00:04]} 76. Nd5+ {[%emt 0:00:09]} Ke5 {[%emt 0:00:01]} 77. Nb6 {[%emt 0:02:23]} f5 {[%emt 0:00:45]} 78. Kf2 {[%emt 0:00:27]} f4 {[%emt 0:02:25]} 79. Nc4+ {[%emt 0:01:10]} Kf5 {[%emt 0:00:41]} 80. Ke2 {[%emt 0:01:45]} g4 {[%emt 0:01:18]} 81. h4 {[%emt 0:00:49]} Ke4 {[%emt 0:00:12]} 82. Nd6+ {[%emt 0:01:36]} Kd4 {[%emt 0:00:27]} 83. Kf2 {[%emt 0:05:35]} Ke5 {[%emt 0:00:30]} 84. Nb5 {[%emt 0:00:22]} Ke4 {[%emt 0:00:16]} 85. Nc3+ {[%emt 0:00:15]} Kd4 {[%emt 0:00:18]} 86. Ne2+ {[%emt 0:00:16]} Ke4 {[%emt 0:00:02]} 87. g3 {[%emt 0:00:10]} fxg3+ {[%emt 0:02:40]} 88. Nxg3+ {[%emt 0:00:26]} Kf4 {[%emt 0:00:27]} 89. Nxh5+ {[%emt 0:00:05]} Kf5 {[%emt 0:00:00]} 90. Ng3+ {[%emt 0:00:00]} Kf4 {[%emt 0:00:00]} 91. h5 {[%emt 0:00:06]} Kg5 {[%emt 0:00:00]} 92. Ke3 {[%emt 0:00:17]} Kh4 {[%emt 0:00:08]} 93. Kf4 {[%emt 0:00:01]} Kh3 {[%emt 0:00:10]} 94. h6 {[%emt 0:00:08]} 1-0

[Event "Winter Malopolska Cup Master 2022"]
[Site "Krakow"]
[Date "2022.01.16"]
[Round "4.5"]
[White "Tokarz, Izabela"]
[Black "Klementys, Jerzy"]
[Result "1-0"]
[ECO "D88"]
[WhiteElo "1728"]
[BlackElo "1564"]
[Annotator "NA RC"]
[PlyCount "83"]
[EventDate "2022.01.15"]
[EventType "swiss"]
[EventCountry "POL"]
[SourceTitle "playchess.com"]
[Source "ChessBase"]
[SourceQuality "1"]
[TimeControl "5400+30"]

1. d4 {[%emt 0:00:01]} Nf6 {[%emt 0:00:08]} 2. c4 {[%emt 0:00:02]} g6 {[%emt 0:00:06]} 3. Nc3 {[%emt 0:00:04]} d5 {[%emt 0:00:06]} 4. cxd5 {[%emt 0:00:05]} Nxd5 {[%emt 0:00:02]} 5. e4 {[%emt 0:00:06]} Nxc3 {[%emt 0:00:07]} 6. bxc3 {[%emt 0:00:04]} Bg7 {[%emt 0:00:08]} 7. Bc4 {[%emt 0:00:19]} c5 {[%emt 0:00:32]} 8. Ne2 {[%emt 0:00:31]} O-O {[%emt 0:00:03]} 9. O-O {[%emt 0:00:09]} cxd4 {[%emt 0:01:00]} 10. cxd4 {[%emt 0:00:05]} Nc6 {[%emt 0:00:10]} 11. Be3 {[%emt 0:00:05]} Bg4 {[%emt 0:01:33]} 12. f3 {[%emt 0:00:04]} Bd7 {[%emt 0:00:10]} 13. Rb1 {[%emt 0:11:47]} b6 {[%emt 0:03:19]} 14. h3 {[%emt 0:09:26]} e6 {[%emt 0:01:28]} 15. e5 {[%emt 0:05:01]} h6 {[%emt 0:08:16]} 16. Qd2 {[%emt 0:07:38]} Kh7 {[%emt 0:00:25]} 17. Nc3 {[%emt 0:03:40]} Ne7 {[%emt 0:02:05]} 18. Bf2 {[%emt 0:05:06]} Bc6 {[%emt 0:01:25]} 19. Rbd1 {[%emt 0:04:20]} Rc8 {[%emt 0:05:30]} 20. Bb3 {[%emt 0:01:08]} Qc7 {[%emt 0:03:22]} 21. Ne4 {[%emt 0:01:55]} Rcd8 {[%emt 0:05:28]} 22. Qf4 {[%emt 0:03:02]} Nd5 {[%emt 0:09:47]} 23. Bxd5 {[%emt 0:01:24]} Bxd5 {[%emt 0:00:24]} 24. Rc1 {[%emt 0:01:34]} Qb8 {[%emt 0:03:27]} 25. Bh4 {[%emt 0:11:49]} Rd7 {[%emt 0:03:39]} 26. Nf6+ {[%emt 0:03:40]} Bxf6 {[%emt 0:00:30]} 27. Bxf6 {[%emt 0:00:05]} Bxa2 {[%emt 0:02:06]} 28. Qh4 {[%emt 0:00:41]} Rc8 {[%emt 0:01:34]} 29. Bg5 {[%emt 0:00:44]} h5 {[%emt 0:00:07]} 30. Qf2 {[%emt 0:05:24]} Bc4 {[%emt 0:02:16]} 31. Rfd1 {[%emt 0:00:14]} Rdc7 {[%emt 0:03:25]} 32. g4 {[%emt 0:00:41]} Bb3 {[%emt 0:01:49]} 33. Rxc7 {[%emt 0:00:54]} Qxc7 {[%emt 0:00:29]} 34. Re1 {[%emt 0:05:16]} Qc3 {[%emt 0:05:50]} 35. gxh5 {[%emt 0:01:21]} gxh5 {[%emt 0:00:07]} 36. Qh4 {[%emt 0:02:08]} Qxf3 {[%emt 0:04:25]} 37. Rf1 {[%emt 0:00:13]} Qe2 {[%emt 0:01:19]} 38. Rxf7+ {[%emt 0:01:11]} Kg8 {[%emt 0:00:49]} 39. Rf2 {[%emt 0:01:59]} Qe1+ {[%emt 0:00:52]} 40. Kh2 {[%emt 0:00:19]} Qxf2+ {[%emt 0:05:43]} 41. Qxf2 {[%emt 0:00:11]} Rc2 {[%emt 0:00:07]} 42. Bd2 {[%emt 0:00:02]} 1-0

[Event "Winter Malopolska Cup Master 2022"]
[Site "Krakow"]
[Date "2022.01.16"]
[Round "4.7"]
[White "Kania, Franciszek"]
[Black "Owoc, Jakub"]
[Result "0-1"]
[ECO "B19"]
[WhiteElo "1528"]
[BlackElo "1701"]
[Annotator "NA RC"]
[PlyCount "88"]
[EventDate "2022.01.15"]
[EventType "swiss"]
[EventCountry "POL"]
[SourceTitle "playchess.com"]
[Source "ChessBase"]
[SourceQuality "1"]
[TimeControl "5400+30"]

1. e4 {[%emt 0:00:01]} c6 {[%emt 0:00:15]} 2. d4 {[%emt 0:00:23]} d5 {[%emt 0:00:14]} 3. Nc3 {[%emt 0:00:14]} dxe4 {[%emt 0:00:14]} 4. Nxe4 {[%emt 0:00:14]} Bf5 {[%emt 0:00:08]} 5. Ng3 {[%emt 0:00:26]} Bg6 {[%emt 0:00:10]} 6. Nf3 {[%emt 0:00:23]} Nd7 {[%emt 0:00:09]} 7. h4 {[%emt 0:00:07]} h6 {[%emt 0:00:11]} 8. h5 {[%emt 0:00:05]} Bh7 {[%emt 0:00:09]} 9. Bd3 {[%emt 0:00:12]} Bxd3 {[%emt 0:00:06]} 10. Qxd3 {[%emt 0:00:10]} e6 {[%emt 0:00:50]} 11. Bd2 {[%emt 0:01:56]} Ngf6 {[%emt 0:00:15]} 12. O-O-O {[%emt 0:00:13]} Qc7 {[%emt 0:00:14]} 13. Kb1 {[%emt 0:00:58]} Bd6 {[%emt 0:00:19]} 14. Ne4 {[%emt 0:00:09]} Nxe4 {[%emt 0:00:07]} 15. Qxe4 {[%emt 0:00:06]} Nf6 {[%emt 0:00:08]} 16. Qe2 {[%emt 0:00:50]} O-O-O {[%emt 0:00:09]} 17. c4 {[%emt 0:01:05]} c5 {[%emt 0:00:43]} 18. Bc3 {[%emt 0:01:20]} cxd4 {[%emt 0:02:26]} 19. Bxd4 {[%emt 0:03:15]} Kb8 {[%emt 0:00:11]} 20. Ne5 {[%emt 0:01:57]} Rhf8 {[%emt 0:09:39]} 21. Qe3 {[%emt 0:04:41]} b6 {[%emt 0:07:10]} 22. Rhe1 {[%emt 0:02:55]} Rc8 {[%emt 0:07:46]} 23. g4 {[%emt 0:05:32]} Rfe8 {[%emt 0:04:34]} 24. g5 {[%emt 0:04:18]} Ng8 {[%emt 0:00:11]} 25. Qb3 {[%emt 0:07:27]} f6 {[%emt 0:14:51]} 26. gxf6 {[%emt 0:11:34]} gxf6 {[%emt 0:00:10]} 27. Ng4 {[%emt 0:01:26]} e5 {[%emt 0:09:51]} 28. Be3 {[%emt 0:08:51]} Red8 {[%emt 0:00:12]} 29. Rc1 {[%emt 0:04:20]} Qf7 {[%emt 0:06:00]} 30. Red1 {[%emt 0:03:08]} f5 {[%emt 0:05:20]} 31. Rxd6 {[%emt 0:10:24]} Rxd6 {[%emt 0:00:18]} 32. Nxe5 {[%emt 0:00:10]} Qb7 {[%emt 0:01:26]} 33. Bf4 {[%emt 0:01:59]} Ka8 {[%emt 0:00:18]} 34. Re1 {[%emt 0:00:44]} Rd4 {[%emt 0:01:37]} 35. Qg3 {[%emt 0:01:27]} Nf6 {[%emt 0:01:50]} 36. Bxh6 {[%emt 0:01:52]} Nxh5 {[%emt 0:00:06]} 37. Qg6 {[%emt 0:01:02]} Re4 {[%emt 0:00:28]} 38. Nd3 {[%emt 0:02:42]} Rxe1+ {[%emt 0:00:31]} 39. Nxe1 {[%emt 0:00:05]} Qe4+ {[%emt 0:00:07]} 40. Nc2 {[%emt 0:00:20]} Rxc4 {[%emt 0:00:23]} 41. Qg8+ {[%emt 0:00:09]} Kb7 {[%emt 0:00:04]} 42. Qf7+ {[%emt 0:00:23]} Ka6 {[%emt 0:00:05]} 43. Qxh5 {[%emt 0:00:18]} Qxc2+ {[%emt 0:00:06]} 44. Ka1 {[%emt 0:00:05]} Qc1+ {[%emt 0:00:06]} 0-1

[Event "Winter Malopolska Cup Master 2022"]
[Site "Krakow"]
[Date "2022.01.17"]
[Round "5.1"]
[White "Trybus, Daniel"]
[Black "Kyc, Jerzy"]
[Result "1-0"]
[ECO "B90"]
[WhiteElo "2067"]
[BlackElo "2250"]
[Annotator "ChessBase"]
[PlyCount "125"]
[EventDate "2022.01.15"]
[EventType "swiss"]
[EventCountry "POL"]
[TimeControl "5400+30"]

1. e4 {[%emt 0:00:04]} c5 {[%emt 0:00:03]} 2. Nf3 {[%emt 0:00:05]} d6 {[%emt 0:00:23]} 3. d4 {[%emt 0:00:04]} cxd4 {[%emt 0:00:03]} 4. Nxd4 {[%emt 0:00:02]} Nf6 {[%emt 0:00:06]} 5. Nc3 {[%emt 0:00:01]} a6 {[%emt 0:00:10]} 6. f3 {[%emt 0:00:14]} e5 {[%emt 0:00:06]} 7. Nb3 {[%emt 0:00:02]} Be7 {[%emt 0:00:05]} 8. Be3 {[%emt 0:00:06]} Be6 {[%emt 0:00:03]} 9. Qd2 {[%emt 0:00:06]} O-O {[%emt 0:00:10]} 10. O-O-O {[%emt 0:00:55]} Nbd7 {[%emt 0:01:24]} 11. g4 {[%emt 0:01:34]} b5 {[%emt 0:02:19]} 12. g5 {[%emt 0:00:05]} b4 {[%emt 0:00:02]} 13. gxf6 {[%emt 0:00:08]} bxc3 {[%emt 0:00:01]} 14. Qxc3 {[%emt 0:00:11]} Nxf6 {[%emt 0:00:02]} 15. Na5 {[%emt 0:01:19]} Qd7 {[%emt 0:00:08]} 16. Nc6 {[%emt 0:01:24]} Rfc8 {[%emt 0:00:36]} 17. Nxe7+ {[%emt 0:00:04]} Qxe7 {[%emt 0:00:06]} 18. Qa5 {[%emt 0:00:29]} h6 {[%emt 0:16:23]} 19. b3 {[%emt 0:05:41]} Rc6 {[%emt 0:28:58]} 20. Bb5 {[%emt 0:04:24]} Rc7 {[%emt 0:15:05]} 21. Be2 {[%emt 0:00:52]} Rac8 {[%emt 0:00:34]} 22. c4 {[%emt 0:00:12]} Rc6 {[%emt 0:00:34]} 23. Kb2 {[%emt 0:05:46]} Nh5 {[%emt 0:05:18]} 24. Rd3 {[%emt 0:07:55]} f5 {[%emt 0:01:32]} 25. Qd2 {[%emt 0:06:22]} Nf6 {[%emt 0:02:37]} 26. Rd1 {[%emt 0:01:53]} Rd8 {[%emt 0:01:59]} 27. exf5 {[%emt 0:02:15]} Bxf5 {[%emt 0:01:02]} 28. Rd5 {[%emt 0:01:17]} Kh8 {[%emt 0:04:41]} 29. Bd3 {[%emt 0:03:15]} Be6 {[%emt 0:03:47]} 30. Bxh6 {[%emt 0:05:49]} Bxd5 {[%emt 0:00:32]} 31. cxd5 {[%emt 0:02:41]} Rc5 {[%emt 0:02:12]} 32. Rg1 {[%emt 0:05:22]} Rg8 {[%emt 0:01:00]} 33. Bg5 {[%emt 0:01:41]} Rgc8 {[%emt 0:06:35]} 34. Bf5 {[%emt 0:09:11]} e4 {[%emt 0:04:59]} 35. Qf4 {[%emt 0:10:50]} Nh5 {[%emt 0:00:48]} 36. Bxe7 {[%emt 0:02:50]} Nxf4 {[%emt 0:00:02]} 37. Bxc8 {[%emt 0:00:22]} Nd3+ {[%emt 0:00:53]} 38. Kb1 {[%emt 0:00:50]} Rxc8 {[%emt 0:01:16]} 39. fxe4 {[%emt 0:01:32]} Re8 {[%emt 0:00:38]} 40. Bxd6 {[%emt 0:00:12]} Rxe4 {[%emt 0:00:02]} 41. Rd1 {[%emt 0:01:42]} Nf2 {[%emt 0:00:05]} 42. Rd2 {[%emt 0:00:24]} Re1+ {[%emt 0:00:01]} 43. Kb2 {[%emt 0:01:29]} Nd1+ {[%emt 0:00:27]} 44. Ka3 {[%emt 0:01:30]} Nc3 {[%emt 0:00:43]} 45. Bg3 {[%emt 0:00:44]} Re7 {[%emt 0:01:28]} 46. Kb4 {[%emt 0:01:05]} Ne4 {[%emt 0:00:02]} 47. Re2 {[%emt 0:00:29]} Rb7+ {[%emt 0:00:02]} 48. Kc4 {[%emt 0:00:43]} Nf6 {[%emt 0:00:15]} 49. d6 {[%emt 0:00:33]} Kg8 {[%emt 0:00:02]} 50. Re7 {[%emt 0:00:41]} Rxe7 {[%emt 0:00:21]} 51. dxe7 {[%emt 0:00:17]} Kf7 {[%emt 0:00:01]} 52. Be5 {[%emt 0:00:52]} Ng4 {[%emt 0:02:12]} 53. Bd6 {[%emt 0:00:32]} Ke8 {[%emt 0:00:11]} 54. Kc5 {[%emt 0:01:46]} Kd7 {[%emt 0:00:19]} 55. Kb6 {[%emt 0:01:06]} Nf6 {[%emt 0:00:30]} 56. Ba3 {[%emt 0:00:05]} Ng4 {[%emt 0:00:40]} 57. Kxa6 {[%emt 0:00:41]} Nxh2 {[%emt 0:00:05]} 58. b4 {[%emt 0:00:12]} Nf3 {[%emt 0:02:02]} 59. b5 {[%emt 0:00:17]} g5 {[%emt 0:01:25]} 60. b6 {[%emt 0:00:06]} Nd4 {[%emt 0:00:16]} 61. b7 {[%emt 0:00:26]} Nc6 {[%emt 0:00:02]} 62. Kb6 {[%emt 0:00:04]} g4 {[%emt 0:00:11]} 63. e8=Q+ {[%emt 0:00:13]} 1-0

[Event "Winter Malopolska Cup Master 2022"]
[Site "Krakow"]
[Date "2022.01.17"]
[Round "5.2"]
[White "Golenia, Wojciech"]
[Black "Mirski, Michal"]
[Result "1/2-1/2"]
[ECO "A36"]
[WhiteElo "2059"]
[BlackElo "2039"]
[Annotator "ChessBase"]
[PlyCount "64"]
[EventDate "2022.01.15"]
[EventType "swiss"]
[EventCountry "POL"]
[TimeControl "5400+30"]

1. c4 {[%emt 0:16:54]} c5 {[%emt 0:00:20]} 2. Nc3 {[%emt 0:00:34]} Nc6 {[%emt 0:00:06]} 3. g3 {[%emt 0:00:21]} g6 {[%emt 0:00:06]} 4. Bg2 {[%emt 0:00:04]} Bg7 {[%emt 0:00:05]} 5. b3 {[%emt 0:03:27]} Nf6 {[%emt 0:01:33]} 6. Bb2 {[%emt 0:02:39]} O-O {[%emt 0:00:54]} 7. e3 {[%emt 0:01:45]} d6 {[%emt 0:05:42]} 8. Nge2 {[%emt 0:02:41]} Bg4 {[%emt 0:06:00]} 9. h3 {[%emt 0:03:28]} Bf5 {[%emt 0:08:38]} 10. d4 {[%emt 0:11:16]} Qc8 {[%emt 0:10:02]} 11. a3 {[%emt 0:11:49]} Rb8 {[%emt 0:04:51]} 12. d5 {[%emt 0:02:35]} Na5 {[%emt 0:07:32]} 13. g4 {[%emt 0:03:47]} Bd7 {[%emt 0:00:46]} 14. a4 {[%emt 0:01:50]} a6 {[%emt 0:01:25]} 15. g5 {[%emt 0:02:10]} Ne8 {[%emt 0:01:33]} 16. h4 {[%emt 0:00:52]} Qd8 {[%emt 0:14:12]} 17. Bh3 {[%emt 0:05:41]} Bxh3 {[%emt 0:05:47]} 18. Rxh3 {[%emt 0:00:08]} b5 {[%emt 0:00:43]} 19. axb5 {[%emt 0:00:23]} axb5 {[%emt 0:00:10]} 20. cxb5 {[%emt 0:00:31]} c4 {[%emt 0:07:23]} 21. b4 {[%emt 0:14:13]} Nb3 {[%emt 0:00:29]} 22. Ra6 {[%emt 0:01:07]} Rxb5 {[%emt 0:14:17]} 23. Nxb5 {[%emt 0:00:35]} Qc8 {[%emt 0:00:05]} 24. Bxg7 {[%emt 0:03:07]} Nxg7 {[%emt 0:00:28]} 25. Rc6 {[%emt 0:01:12]} Qxh3 {[%emt 0:00:05]} 26. Nf4 {[%emt 0:02:45]} Qh1+ {[%emt 0:06:11]} 27. Ke2 {[%emt 0:00:24]} Nc1+ {[%emt 0:01:39]} 28. Kd2 {[%emt 0:00:18]} Nb3+ {[%emt 0:01:02]} 29. Ke2 {[%emt 0:00:22]} Nc1+ {[%emt 0:00:44]} 30. Kd2 {[%emt 0:00:07]} Nb3+ {[%emt 0:00:05]} 31. Ke2 {[%emt 0:00:23]} Nc1+ {[%emt 0:00:09]} 32. Kd2 {[%emt 0:00:07]} Nb3+ 1/2-1/2